bitfinex/quotes_SOLUSD_20260115
["timestamp","ask_amount","ask_price","bid_price","bid_amount"]
[1768453960929,0.70012298,144.36,144.33,4.73891532]
[1768453961138,0.70012298,144.34,144.31,7.64163962]
[1768453961322,6.92713293,144.36,144.32,0.71224217]
[1768453961523,5.18515935,144.35,144.32,0.71224217]
[1768453961824,6.92713293,144.36,144.31,11.66831277]
[1768453962016,5.18537461,144.35,144.32,0.71224217]
[1768453962221,6.92713293,144.36,144.32,0.71224217]
[1768453962536,5.18542653,144.35,144.32,0.71224217]
[1768453962729,6.92713293,144.36,144.32,0.71224217]
[1768453962937,5.18549746,144.35,144.32,0.71224217]
[1768453963147,6.92713293,144.36,144.32,0.71224217]
[1768453963332,5.88567339,144.35,144.32,0.71224217]
[1768453963521,0.5144481,144.35,144.32,4.73891532]
[1768453963721,0.5144481,144.35,144.32,0.71224217]
[1768453963916,0.5144481,144.35,144.3,4.73891532]
[1768453964122,5.88389228,144.34,144.31,0.71224217]
[1768453964335,0.69826623,144.34,144.31,0.71224217]
[1768453965240,0.69826623,144.34,144.31,4.73891532]
[1768453968539,7.62641856,144.34,144.31,4.73891532]
[1768453968748,4.54295943,144.33,144.3,0.71224217]
[1768453968931,0.51628628,144.33,144.3,0.71224217]
[1768453970447,0.67809258,144.32,144.27,0.65648437]
[1768453970648,0.5362582,144.31,144.27,4.02667315]
[1768453970855,0.5362582,144.31,144.28,0.65648437]
[1768453971926,7.60700744,144.33,144.29,4.68315752]
[1768453972543,7.60700744,144.33,144.3,0.65648437]
[1768453980357,6.92891486,144.33,144.3,0.65648437]
[1768453981336,7.46517306,144.33,144.3,0.65648437]
[1768453985854,0.67667423,144.32,144.28,0.65648437]
[1768453986557,0.67667423,144.32,144.29,0.65648437]
[1768453988646,11.63244815,144.32,144.29,0.65648437]
[1768453989141,7.605775,144.32,144.29,0.65648437]
[1768453996570,6.92910077,144.32,144.29,0.65648437]
[1768453996766,7.60719335,144.32,144.29,0.65648437]
[1768454002478,11.6338665,144.32,144.29,0.65648437]
[1768454002854,7.60719335,144.32,144.29,0.65648437]
[1768454003259,11.6338665,144.32,144.29,0.65648437]
[1768454005682,7.60719335,144.32,144.29,0.65648437]
[1768454008400,0.53766236,144.29,144.26,0.70988991]
[1768454008594,4.02667315,144.3,144.26,0.70988991]
[1768454008595,4.72880294,144.3,144.26,0.70988991]
[1768454009479,4.02667315,144.31,144.27,0.70988991]
[1768454009674,4.53913451,144.31,144.27,0.70988991]
[1768454010871,11.46899855,144.31,144.27,0.70988991]
[1768454011694,7.4423254,144.31,144.27,0.70988991]
[1768454014588,7.63024814,144.3,144.27,0.70988991]
[1768454014996,7.57024815,144.3,144.27,0.70988991]
[1768454017086,11.5969213,144.3,144.27,0.70988991]
[1768454017479,10.15027149,144.3,144.27,0.70988991]
[1768454017673,7.57024815,144.3,144.27,0.70988991]
[1768454018381,7.51024816,144.3,144.27,0.70988991]
[1768454020096,10.0902715,144.3,144.27,0.70988991]
[1768454020677,0.51433908,144.29,144.25,0.70988991]
[1768454020892,0.45433909,144.29,144.26,0.70988991]
[1768454025397,0.3943391,144.29,144.26,0.70988991]
[1768454035611,0.3943391,144.29,144.26,3.28991325]
[1768454036421,0.66655093,144.3,144.27,0.65837898]
[1768454036598,5.18322865,144.29,144.27,0.65837898]
[1768454036800,0.66655093,144.3,144.27,0.65837898]
[1768454037119,5.18322613,144.29,144.27,0.65837898]
[1768454037320,0.66655093,144.3,144.27,0.65837898]
[1768454037500,5.18363186,144.29,144.27,0.65837898]
[1768454037694,0.66655093,144.3,144.27,0.65837898]
[1768454037909,5.18363312,144.29,144.27,0.65837898]
[1768454038103,0.66655093,144.3,144.27,0.65837898]
[1768454038296,5.18363186,144.29,144.27,0.65837898]
[1768454038617,0.66655093,144.3,144.27,0.65837898]
[1768454038819,5.18411021,144.29,144.27,0.65837898]
[1768454039020,0.66655093,144.3,144.27,0.65837898]
[1768454039224,5.18410895,144.29,144.27,0.65837898]
[1768454039522,0.66655093,144.3,144.27,0.65837898]
[1768454039714,5.18466799,144.29,144.27,0.65837898]
[1768454039893,0.66655093,144.3,144.27,0.65837898]
[1768454040092,5.18466799,144.29,144.27,0.65837898]
[1768454040294,0.66655093,144.3,144.27,0.65837898]
[1768454040518,5.18512797,144.29,144.27,0.65837898]
[1768454040722,0.66655093,144.3,144.27,0.65837898]
[1768454040891,5.18512945,144.29,144.27,0.65837898]
[1768454041095,0.66655093,144.31,144.28,0.65837898]
[1768454041416,5.18481001,144.3,144.28,0.65837898]
[1768454041717,0.66655093,144.31,144.28,0.65837898]
[1768454041909,5.18493676,144.3,144.28,0.65837898]
[1768454042111,0.66655093,144.31,144.28,0.65837898]
[1768454042327,5.18493676,144.3,144.28,0.65837898]
[1768454042525,0.66655093,144.31,144.28,0.65837898]
[1768454042728,5.18513765,144.3,144.28,0.65837898]
[1768454043025,0.66655093,144.31,144.28,0.65837898]
[1768454043327,5.18513765,144.3,144.28,0.65837898]
[1768454043623,0.66655093,144.31,144.28,0.65837898]
[1768454043827,5.18534804,144.3,144.28,0.65837898]
[1768454044033,7.59559749,144.32,144.28,0.65837898]
[1768454044336,5.18534552,144.31,144.29,0.65837898]
[1768454044503,4.46034552,144.3,144.28,2.58002334]
[1768454044704,20.23531609,144.33,144.28,9.51090463]
[1768454045010,20.23531609,144.33,144.29,0.57023243]
[1768454045314,7.59531609,144.33,144.3,0.57023243]
[1768454048729,0.66655093,144.35,144.32,0.57023243]
[1768454048930,7.59415744,144.35,144.32,3.15025577]
[1768454050328,7.59415744,144.35,144.32,0.57023243]
[1768454057320,7.59415744,144.35,144.32,3.15025577]
[1768454057519,0.66655093,144.37,144.33,0.57023243]
[1768454057823,5.83720293,144.36,144.33,3.15025577]
[1768454058023,0.66655093,144.36,144.33,3.15025577]
[1768454064842,0.66655093,144.36,144.34,2.58002334]
[1768454065717,0.69912687,144.37,144.34,3.15025577]
[1768454065935,0.69912687,144.37,144.32,2.58002334]
[1768454066436,0.69912687,144.36,144.32,3.15025577]
[1768454066738,0.69912687,144.36,144.32,0.57023243]
[1768454069339,0.69912687,144.35,144.32,0.57023243]
[1768454071754,0.69912687,144.35,144.31,13.19023243]
[1768454075844,0.69912687,144.35,144.31,15.77025577]
[1768454076344,0.69912687,144.35,144.31,3.15025577]
[1768454076841,0.69912687,144.32,144.28,0.57023243]
[1768454077040,0.63912688,144.32,144.28,0.57023243]
[1768454077623,0.63912688,144.32,144.28,3.15025577]
[1768454077823,0.63912688,144.32,144.29,0.63023242]
[1768454078024,9.50845043,144.34,144.29,0.63023242]
[1768454079028,0.69912687,144.33,144.29,3.21025576]
[1768454079450,0.69912687,144.33,144.29,4.65928638]
[1768454080546,0.69912687,144.32,144.29,0.63023242]
[1768454080852,0.69912687,144.32,144.29,4.65928638]
[1768454082450,7.6281705,144.33,144.3,0.63023242]
[1768454083341,0.69912687,144.35,144.32,0.63023242]
[1768454084350,0.69912687,144.35,144.31,4.65928638]
[1768454084552,0.69912687,144.34,144.31,4.65928638]
[1768454088232,0.69912687,144.34,144.32,4.02905396]
[1768454089253,0.69912687,144.34,144.31,0.63023242]
[1768454089457,0.69912687,144.34,144.31,4.02905396]
[1768454089651,0.69912687,144.34,144.31,4.65928638]
[1768454091264,0.71055546,144.33,144.29,0.63023242]
[1768454091454,0.71055546,144.32,144.3,4.02905396]
[1768454091860,0.71055546,144.32,144.29,0.63023242]
[1768454092050,0.71055546,144.32,144.31,4.02905396]
[1768454092749,0.71055546,144.33,144.31,4.02905396]
[1768454092948,0.71055546,144.33,144.32,4.02905396]
[1768454093857,0.71055546,144.33,144.3,0.63023242]
[1768454094057,0.71055546,144.33,144.31,4.02905396]
[1768454094538,0.71055546,144.33,144.32,4.02905396]
[1768454094963,0.71055546,144.32,144.28,6.93038863]
[1768454095164,0.71055546,144.29,144.25,0.63023242]
[1768454095886,0.71055546,144.29,144.25,4.65928638]
[1768454096181,0.71055546,144.29,144.25,0.63023242]
[1768454097066,0.71055546,144.28,144.25,0.60023242]
[1768454097739,0.71055546,144.28,144.24,4.02905396]
[1768454097740,0.71055546,144.28,144.23,4.02905396]
[1768454098168,0.71055546,144.28,144.23,6.93333784]
[1768454098340,0.71055546,144.28,144.23,10.9623918]
[1768454099044,0.71055546,144.28,144.23,11.56262422]
[1768454101247,0.71055546,144.27,144.23,4.62928638]
[1768454101452,0.71055546,144.27,144.22,4.62928638]
[1768454102063,0.71055546,144.26,144.22,4.62928638]
[1768454102847,0.71055546,144.26,144.23,0.60023242]
[1768454105550,0.71055546,144.26,144.22,4.62928638]
[1768454108159,0.71055546,144.25,144.2,20.17493644]
[1768454108468,0.71055546,144.25,144.21,4.62928638]
[1768454110870,0.71055546,144.25,144.21,0.60023242]
[1768454111048,0.71055546,144.25,144.21,4.62928638]
[1768454111250,0.71055546,144.25,144.21,0.60023242]
[1768454111467,0.71055546,144.25,144.21,4.62928638]
[1768454111764,0.71055546,144.24,144.21,0.60023242]
[1768454112071,0.71055546,144.25,144.21,4.62928638]
[1768454114465,0.71055546,144.25,144.21,0.60023242]
[1768454114774,0.71055546,144.25,144.21,4.62928638]
[1768454120153,0.71055546,144.25,144.22,0.60023242]
[1768454120476,0.71055546,144.25,144.21,4.02905396]
[1768454120477,0.71055546,144.26,144.23,4.62928638]
[1768454122288,12.64,144.3,144.25,0.60023242]
[1768454122571,0.67355551,144.29,144.24,4.02905396]
[1768454122755,0.67355551,144.28,144.24,4.02905396]
[1768454122956,0.67355551,144.28,144.23,4.02905396]
[1768454124394,0.67355551,144.28,144.23,4.59928638]
[1768454124690,0.67355551,144.27,144.23,0.57023242]
[1768454124986,0.67355551,144.27,144.24,4.02905396]
[1768454125291,0.67355551,144.27,144.24,3.99905396]
[1768454125989,6.93058156,144.29,144.27,0.57023242]
[1768454126192,0.67355551,144.29,144.26,4.59928638]
[1768454126984,7.60410271,144.29,144.26,4.59928638]
[1768454129777,0.67355551,144.3,144.28,4.02905396]
[1768454129985,0.67355551,144.31,144.29,4.02905396]
[1768454130289,0.67355551,144.33,144.3,4.59928638]
[1768454133083,7.60230595,144.33,144.3,4.59928638]
[1768454134812,7.60230595,144.33,144.31,4.02905396]
[1768454139386,7.60230595,144.33,144.31,2.57821901]
[1768454140110,7.60230595,144.33,144.3,3.14845143]
[1768454141193,7.60230595,144.33,144.31,2.57821901]
[1768454142293,0.67355551,144.35,144.32,2.57821901]
[1768454143507,0.67355551,144.34,144.32,2.57821901]
[1768454148390,0.67355551,144.34,144.31,0.57023242]
[1768454148586,0.67355551,144.34,144.32,2.57821901]
[1768454150510,0.67355551,144.34,144.31,3.14845143]
[1768454155523,0.67355551,144.34,144.32,2.57821901]
[1768454159122,0.67355551,144.34,144.31,0.57023242]
[1768454159330,0.67355551,144.34,144.32,2.57821901]
[1768454160324,0.67355551,144.34,144.33,2.57821901]
[1768454160521,7.58784213,144.37,144.34,0.57023242]
[1768454160732,7.58784213,144.37,144.34,3.14845143]
[1768454161207,0.66101463,144.36,144.34,2.57821901]
[1768454163023,0.66101463,144.36,144.33,2.57821901]
[1768454163329,0.66101463,144.36,144.33,3.14845143]
[1768454164630,0.66101463,144.37,144.35,2.57821901]
[1768454165017,0.66101463,144.38,144.35,3.14845143]
[1768454165207,0.66101463,144.37,144.34,3.14845143]
[1768454167230,0.66101463,144.36,144.34,2.57821901]
[1768454167429,0.66101463,144.36,144.33,3.14845143]
[1768454168632,0.66101463,144.36,144.34,2.57821901]
[1768454170617,13.28101463,144.39,144.36,0.57023242]
[1768454170821,13.28101463,144.39,144.36,3.14845143]
[1768454171321,0.66101463,144.38,144.36,2.57821901]
[1768454172237,0.66101463,144.38,144.35,0.57023242]
[1768454172418,0.66101463,144.38,144.36,2.57821901]
[1768454173332,0.66101463,144.38,144.35,0.57023242]
[1768454173533,0.66101463,144.38,144.36,2.57821901]
[1768454174836,0.66101463,144.38,144.34,2.57821901]
[1768454175043,0.66101463,144.36,144.34,2.57821901]
[1768454175239,0.60101464,144.36,144.34,2.57821901]
[1768454178448,0.60101464,144.36,144.33,7.49861771]
[1768454178743,0.60101464,144.36,144.34,2.57821901]
[1768454178922,0.60101464,144.36,144.34,3.20845142]
[1768454179339,0.60101464,144.36,144.3,12.62]
[1768454179340,0.60101464,144.36,144.3,0.63023241]
[1768454179541,0.66101463,144.35,144.3,10.13815281]
[1768454180041,0.66101463,144.35,144.31,0.63023241]
[1768454182934,0.67859614,144.34,144.3,0.63023241]
[1768454183253,5.85522958,144.34,144.3,3.20845142]
[1768454183545,0.67859614,144.34,144.3,3.20845142]
[1768454183745,0.67859614,144.34,144.31,3.20845142]
[1768454186044,0.67859614,144.34,144.31,0.63023241]
[1768454190928,0.67859614,144.33,144.29,0.63023241]
[1768454191135,0.67859614,144.31,144.27,3.20845142]
[1768454191736,0.67859614,144.31,144.27,0.63023241]
[1768454191939,0.67859614,144.31,144.25,6.93224518]
[1768454191940,0.67859614,144.29,144.25,10.1406966]
[1768454192147,0.61859615,144.29,144.26,0.63023241]
[1768454194538,0.67859614,144.28,144.25,0.66024372]
[1768454197259,0.61859615,144.28,144.25,0.66024372]
[1768454197654,0.55859616,144.28,144.25,0.66024372]
[1768454197857,0.55859616,144.28,144.25,3.23846273]
[1768454198251,6.93051843,144.29,144.26,0.66024372]
[1768454199055,6.93014857,144.3,144.27,0.66024372]
[1768454199560,7.60874471,144.3,144.27,0.66024372]
[1768454199967,0.67859614,144.29,144.26,4.69109002]
[1768454200175,7.60928668,144.29,144.26,0.66024372]
[1768454201074,7.60928668,144.29,144.26,4.69109002]
[1768454203153,0.67859614,144.32,144.29,0.66024372]
[1768454203359,0.67859614,144.32,144.29,4.69109002]
[1768454204565,0.67859614,144.32,144.3,4.0308463]
[1768454204860,0.67859614,144.33,144.3,4.69109002]
[1768454208467,0.67859614,144.32,144.29,4.0308463]
[1768454208848,0.67859614,144.32,144.28,4.69109002]
[1768454209562,7.60796442,144.32,144.28,4.69109002]
[1768454209883,7.60796442,144.32,144.29,4.0308463]
[1768454211173,0.69304096,144.31,144.29,4.0308463]
[1768454211475,0.69304096,144.3,144.28,4.0308463]
[1768454212562,0.69304096,144.3,144.27,4.68968299]
[1768454212957,0.69304096,144.3,144.28,4.0308463]
[1768454213160,0.63304097,144.3,144.28,4.0308463]
[1768454214572,6.92920087,144.32,144.29,4.0308463]
[1768454214748,6.92808646,144.34,144.29,4.68968299]
[1768454214954,6.92808646,144.34,144.3,4.0308463]
[1768454215169,0.69304096,144.33,144.3,4.0308463]
[1768454215759,0.69304096,144.32,144.29,0.65883669]
[1768454215961,0.69304096,144.32,144.3,4.0308463]
[1768454217679,0.69304096,144.32,144.29,0.65883669]
[1768454217883,0.69304096,144.32,144.29,4.68968299]
[1768454220987,0.69304096,144.31,144.29,4.0308463]
[1768454221676,0.69304096,144.31,144.26,0.65883669]
[1768454221863,0.69304096,144.3,144.26,4.68968299]
[1768454222064,0.69304096,144.3,144.28,4.0308463]
[1768454222287,6.92905574,144.32,144.28,4.68968299]
[1768454222665,10.95938268,144.34,144.29,4.68968299]
[1768454223484,5.16837544,144.33,144.29,4.0308463]
[1768454223661,10.95938268,144.34,144.29,4.0308463]
[1768454224283,0.69304096,144.32,144.29,4.0308463]
[1768454225796,0.69304096,144.32,144.28,4.68968299]
[1768454226168,0.69304096,144.31,144.26,7.59061793]
[1768454226367,0.63304097,144.31,144.27,4.68968299]
[1768454227698,0.63304097,144.31,144.28,4.68968299]
[1768454229284,0.57304098,144.31,144.28,4.68968299]
[1768454229920,6.92862291,144.33,144.29,0.65883669]
[1768454230209,6.92862291,144.33,144.3,0.65883669]
[1768454230419,6.92822219,144.34,144.3,4.68968299]
[1768454230619,5.17276326,144.33,144.3,4.68968299]
[1768454230788,6.92822219,144.34,144.3,4.68968299]
[1768454231121,5.17276051,144.33,144.3,4.68968299]
[1768454231318,0.69304096,144.34,144.3,4.68968299]
[1768454231623,5.17320449,144.33,144.31,0.65883669]
[1768454231915,0.69304096,144.34,144.31,0.65883669]
[1768454232115,5.17320174,144.33,144.31,0.65883669]
[1768454232306,0.69304096,144.34,144.31,0.65883669]
[1768454233217,5.86706729,144.33,144.3,4.68968299]
[1768454233390,0.69304096,144.33,144.3,0.65883669]
[1768454234148,0.69304096,144.33,144.29,4.68968299]
[1768454234349,0.69304096,144.32,144.29,4.0308463]
[1768454234642,0.63304097,144.32,144.28,4.68968299]
[1768454234817,0.63304097,144.32,144.28,0.65883669]
[1768454235345,0.63304097,144.32,144.28,4.68968299]
[1768454236845,7.56209639,144.32,144.28,4.68968299]
[1768454237222,0.69304096,144.31,144.28,4.68968299]
[1768454237948,0.64303537,144.31,144.28,4.68968299]
[1768454238243,6.92956008,144.31,144.27,4.68968299]
[1768454238547,10.90040639,144.31,144.26,4.68968299]
[1768454238915,10.90040639,144.31,144.26,4.0308463]
[1768454239346,10.90040639,144.31,144.26,4.68968299]
[1768454239976,6.86956009,144.31,144.26,4.68968299]
[1768454240239,7.62314141,144.3,144.26,4.68968299]
[1768454240542,0.69304096,144.29,144.26,4.68968299]
[1768454240921,0.69304096,144.29,144.26,0.65883669]
[1768454241121,0.68709571,144.28,144.24,0.66520062]
[1768454241329,0.68709571,144.28,144.24,4.69604692]
[1768454241730,0.68709571,144.28,144.25,4.0308463]
[1768454241934,0.68709571,144.28,144.25,4.69604692]
[1768454242241,7.61810436,144.28,144.24,4.69604692]
[1768454242427,7.61810436,144.28,144.25,0.71763511]
[1768454244067,7.61810436,144.28,144.25,4.74848141]
[1768454244930,7.55810437,144.28,144.25,0.71763511]
[1768454245256,7.55810437,144.28,144.25,4.74848141]
[1768454245733,7.55810437,144.28,144.25,0.71763511]
[1768454246248,6.93100865,144.28,144.24,4.0308463]
[1768454246945,0.72282827,144.27,144.24,4.74848141]
[1768454247832,0.72282827,144.27,144.24,0.71763511]
[1768454248259,7.65383692,144.28,144.25,0.71763511]
[1768454251867,0.72282827,144.27,144.24,0.71763511]
[1768454252662,0.72282827,144.27,144.23,0.71763511]
[1768454252969,0.72282827,144.27,144.24,0.71763511]
[1768454255068,7.65430722,144.27,144.24,0.71763511]
[1768454255269,7.65430722,144.27,144.23,0.71763511]
[1768454255270,0.72282827,144.26,144.23,0.71763511]
[1768454255457,0.72282827,144.26,144.23,4.74848141]
[1768454256568,4.0308463,144.28,144.23,4.74848141]
[1768454256569,6.93115435,144.28,144.23,4.74848141]
[1768454256767,0.72282827,144.28,144.24,0.71763511]
[1768454257071,13.36282827,144.28,144.25,0.71763511]
[1768454257665,7.65351649,144.29,144.25,0.71763511]
[1768454257865,17.81536991,144.28,144.25,0.71763511]
[1768454258062,12.64,144.28,144.25,0.71763511]
[1768454258777,13.36282827,144.28,144.25,0.71763511]
[1768454259476,0.72282827,144.27,144.24,4.74848141]
[1768454260061,0.72282827,144.27,144.24,0.71763511]
[1768454261578,7.65430644,144.27,144.24,0.71763511]
[1768454262282,6.93147817,144.27,144.25,0.71763511]
[1768454262578,7.65430644,144.27,144.25,0.71763511]
[1768454263167,6.93147817,144.27,144.25,0.71763511]
[1768454263673,20.29398029,144.28,144.25,3.29853593]
[1768454264289,6.93115202,144.28,144.26,0.71763511]
[1768454266887,7.65398029,144.28,144.25,3.29853593]
[1768454267092,7.65331548,144.29,144.26,0.71763511]
[1768454267386,5.17118886,144.28,144.26,0.71763511]
[1768454267594,7.65331548,144.29,144.26,0.71763511]
[1768454267783,5.8936884,144.28,144.23,0.71763511]
[1768454267983,0.72282827,144.28,144.25,3.29853593]
[1768454269392,7.65395446,144.28,144.25,0.71763511]
[1768454274694,6.93112619,144.28,144.25,0.71763511]
[1768454274883,7.59026533,144.28,144.25,0.71763511]
[1768454277295,0.65913914,144.28,144.25,0.71763511]
[1768454278691,19.57060597,144.29,144.25,0.71763511]
[1768454278994,5.17565997,144.28,144.25,0.71763511]
[1768454279199,20.22974511,144.29,144.25,0.71763511]
[1768454279395,5.17681934,144.28,144.25,0.71763511]
[1768454279576,20.22974511,144.29,144.25,0.71763511]
[1768454279774,5.17682335,144.28,144.25,0.71763511]
[1768454279999,20.22974511,144.29,144.25,0.71763511]
[1768454280180,5.17682335,144.28,144.25,0.71763511]
[1768454280380,20.22974511,144.29,144.26,0.72327863]
[1768454280696,7.58883435,144.31,144.27,2.58090082]
[1768454280879,0.65913914,144.31,144.27,2.58090082]
[1768454281682,7.58881416,144.31,144.27,2.58090082]
[1768454281980,0.65913914,144.3,144.25,6.93224479]
[1768454282375,0.65913914,144.3,144.27,2.58090082]
[1768454285010,0.65913914,144.3,144.24,2.58090082]
[1768454285011,0.65913914,144.28,144.24,2.58090082]
[1768454285212,0.65913914,144.28,144.22,24.26847871]
[1768454285410,0.65913914,144.28,144.24,2.58090082]
[1768454287810,0.65913914,144.28,144.24,9.51378426]
[1768454288700,0.65913914,144.28,144.25,2.58090082]
[1768454290611,13.29913914,144.3,144.27,2.58090082]
[1768454291710,13.29913914,144.3,144.28,2.58090082]
[1768454292797,5.18300032,144.29,144.28,2.58090082]
[1768454293013,5.12300033,144.29,144.28,2.58090082]
[1768454293514,5.78213947,144.29,144.27,2.58090082]
[1768454293689,0.65913914,144.29,144.26,2.58090082]
[1768454295802,0.65913914,144.29,144.27,2.58090082]
[1768454296515,0.65913914,144.31,144.28,2.58090082]
[1768454296825,0.65913914,144.32,144.3,2.58090082]
[1768454297809,0.65913914,144.31,144.29,2.58090082]
[1768454298011,0.65913914,144.31,144.28,2.58090082]
[1768454299222,0.65913914,144.31,144.29,2.58090082]
[1768454302216,0.65913914,144.31,144.26,7.60679359]
[1768454302536,0.71450769,144.3,144.28,2.58090082]
[1768454303100,0.71450769,144.3,144.27,0.69666105]
[1768454303399,0.71450769,144.3,144.28,2.58090082]
[1768454304545,7.64374824,144.32,144.29,3.27756187]
[1768454305015,5.17629302,144.31,144.29,3.27756187]
[1768454305216,7.64374824,144.32,144.29,3.27756187]
[1768454305430,5.17630529,144.31,144.29,3.27756187]
[1768454305610,0.71450769,144.32,144.3,2.58090082]
[1768454306326,0.71450769,144.32,144.29,3.27756187]
[1768454308732,0.71450769,144.32,144.31,2.58090082]
[1768454308934,5.88980794,144.32,144.31,2.58090082]
[1768454311047,5.88967938,144.32,144.31,2.58090082]
[1768454311721,5.88967938,144.32,144.29,0.69666105]
[1768454311921,0.71450769,144.32,144.31,2.58090082]
[1768454312121,5.88966906,144.32,144.31,2.58090082]
[1768454314328,6.92868186,144.33,144.31,2.58090082]
[1768454314643,19.56828637,144.34,144.31,2.58090082]
[1768454315345,19.56828637,144.34,144.3,0.69666105]
[1768454315513,19.56828637,144.34,144.31,2.58090082]
[1768454315918,19.56828637,144.34,144.3,0.69666105]
[1768454316121,19.56828637,144.34,144.3,2.58090082]
[1768454316345,0.71450769,144.33,144.3,2.58090082]
[1768454316719,0.71450769,144.34,144.32,2.58090082]
[1768454319850,0.71450769,144.34,144.31,0.69666105]
[1768454320050,7.64272675,144.34,144.31,0.69666105]
[1768454320251,7.64272675,144.34,144.31,3.27756187]
[1768454321751,7.64272675,144.34,144.32,2.58090082]
[1768454322336,13.35450769,144.36,144.32,3.27756187]
[1768454322550,20.28170046,144.36,144.32,3.27756187]
[1768454322860,0.11977477,144.37,144.35,2.58090082]
[1768454323152,20.28077345,144.38,144.35,2.58090082]
[1768454323356,20.28077345,144.38,144.35,4.02626683]
[1768454324139,0.71450769,144.39,144.37,4.02626683]
[1768454324341,0.71450769,144.4,144.38,4.02626683]
[1768454325161,0.71450769,144.4,144.37,4.02626683]
[1768454325351,0.71450769,144.4,144.36,0.69666105]
[1768454325352,0.11977477,144.39,144.36,0.69666105]
[1768454325538,0.11977477,144.39,144.37,4.02626683]
[1768454326961,0.11977477,144.39,144.36,0.69666105]
[1768454327256,0.11977477,144.39,144.37,4.02626683]
[1768454327761,0.11977477,144.39,144.36,0.69666105]
[1768454327967,0.11977477,144.39,144.37,4.02626683]
[1768454329360,0.11977477,144.39,144.36,0.69666105]
[1768454329775,0.11977477,144.39,144.37,4.02626683]
[1768454330092,0.11977477,144.39,144.36,4.72292788]
[1768454331363,0.69789008,144.41,144.38,0.70605416]
[1768454331582,0.69789008,144.41,144.37,4.73232099]
[1768454332445,0.69789008,144.41,144.37,0.70605416]
[1768454332669,0.1362262,144.4,144.36,4.73232099]
[1768454332862,0.1362262,144.4,144.36,0.70605416]
[1768454333069,0.69227344,144.39,144.35,4.73232099]
[1768454333377,0.69227344,144.39,144.36,0.70605416]
[1768454336608,0.69227344,144.39,144.36,4.73232099]
[1768454340022,0.1,144.42,144.39,0.70605416]
[1768454340185,0.1,144.42,144.4,4.02626683]
[1768454340385,0.1,144.42,144.39,4.70232099]
[1768454340586,0.2659262,144.42,144.39,4.70232099]
[1768454341604,0.2659262,144.42,144.39,0.67605416]
[1768454342398,0.2659262,144.42,144.39,4.70232099]
[1768454343608,0.2659262,144.42,144.39,4.67232099]
[1768454348215,0.2659262,144.42,144.39,0.64605416]
[1768454348516,0.2659262,144.42,144.39,4.67232099]
[1768454350018,0.2659262,144.42,144.39,4.64232099]
[1768454350600,0.2659262,144.42,144.4,4.02626683]
[1768454350804,0.2659262,144.42,144.4,3.99626683]
[1768454351520,0.1,144.42,144.4,3.99626683]
[1768454352899,0.1,144.42,144.39,4.73232099]
[1768454357538,0.79316444,144.42,144.39,4.73232099]
[1768454363928,0.79316444,144.42,144.39,4.70232099]
[1768454368427,0.1,144.42,144.41,0.67183117]
[1768454368626,0.1,144.42,144.41,0.64183117]
[1768454369125,0.1,144.42,144.4,4.02626683]
[1768454371828,0.1,144.42,144.39,0.67183117]
[1768454372033,0.1,144.42,144.4,4.02626683]
[1768454372719,0.76135287,144.42,144.39,0.67183117]
[1768454373033,0.76135287,144.42,144.4,4.698098]
[1768454373034,0.1,144.42,144.4,4.698098]
[1768454375833,12.72,144.44,144.42,0.67183117]
[1768454376008,13.0671591,144.44,144.42,0.64183117]
[1768454376209,0.4471591,144.44,144.41,4.02626683]
[1768454376931,0.1,144.45,144.35,74.12]
[1768454377139,0.1,144.45,144.43,4.02626683]
[1768454378825,0.1,144.45,144.44,4.698098]
[1768454379029,0.1,144.46,144.44,4.698098]
[1768454379727,0.1,144.46,144.44,0.67183117]
[1768454380237,0.1,144.46,144.44,4.698098]
[1768454380925,0.76263987,144.46,144.42,0.67183117]
[1768454381123,0.76263987,144.46,144.44,0.67183117]
[1768454381323,0.76263987,144.46,144.44,0.64183117]
[1768454381952,0.1,144.46,144.44,0.64183117]
[1768454382116,12.72,144.48,144.45,4.02626683]
[1768454382315,0.1,144.49,144.47,4.02626683]
[1768454382539,0.76482655,144.49,144.46,4.02626683]
[1768454383123,0.4758591,144.48,144.44,6.92317666]
[1768454383419,0.4758591,144.48,144.46,4.02626683]
[1768454385422,0.4758591,144.48,144.46,2.57279482]
[1768454385631,7.68577128,144.49,144.47,2.57279482]
[1768454385953,7.68577128,144.49,144.46,3.24462599]
[1768454386426,7.68577128,144.49,144.46,0.67183117]
[1768454386630,0.4758591,144.48,144.46,0.67183117]
[1768454386930,0.4758591,144.48,144.46,3.24462599]
[1768454388425,0.4758591,144.48,144.46,0.67183117]
[1768454388741,0.4758591,144.48,144.46,2.57279482]
[1768454390629,0.4758591,144.48,144.45,0.67183117]
[1768454390829,0.4758591,144.48,144.46,2.57279482]
[1768454391048,0.4758591,144.48,144.45,3.24462599]
[1768454391931,0.4758591,144.48,144.45,0.67183117]
[1768454392527,0.4758591,144.48,144.45,3.24462599]
[1768454397754,0.46516574,144.48,144.45,3.25709221]
[1768454399554,0.1,144.49,144.46,0.68429739]
[1768454399762,0.1,144.49,144.47,0.68429739]
[1768454400060,0.77562792,144.49,144.47,0.65429739]
[1768454400548,0.77562792,144.49,144.46,2.57279482]